fUST/lending_fUST_20241122
["ID","MTS","AMOUNT","RATE_DAILY","PERIOD"]
[342957835,1732223435894,-1000.0,0.0001983,2]
[342957836,1732223435903,-538.7,0.0001992,3]
[342957837,1732223435912,-269.35,0.0001992,3]
[342957838,1732223435922,-808.05,0.0001992,3]
[342957839,1732223435932,-2257.65325676,0.00019929,2]
[342957840,1732223435941,-202.75000679,0.00019929,2]
[342957841,1732223435951,-269.26070962,0.00019929,2]
[342957842,1732223435960,-240.7080156,0.00019929,2]
[342957843,1732223435970,-500.0,0.00019929,2]
[342957844,1732223435979,-257.58291188,0.00019929,2]
[342957845,1732223435989,-251.86367368,0.00019929,2]
[342957846,1732223435998,-500.0,0.00019929,2]
[342957847,1732223436008,-500.0,0.00019929,2]
[342957848,1732223436017,-380.0,0.00019929,2]
[342957849,1732223436026,-500.0,0.00019929,2]
[342957850,1732223436036,-500.0,0.00019929,2]
[342957851,1732223436045,-500.0,0.00019929,2]
[342957852,1732223436056,-500.0,0.00019929,2]
[342957853,1732223436065,-622.11507672,0.00019929,2]
[342957854,1732223436075,-500.0,0.00019929,2]
[342957855,1732223436084,-250000.0,0.0001993,2]
[342957856,1732223436095,-230000.0,0.0001993,2]
[342957857,1732223436105,-160.0,0.0002,2]
[342957858,1732223436118,-310.04825303,0.00020387,2]
[342957859,1732223436128,-400.0,0.00020447,2]
[342957860,1732223436137,-677.283,0.00020578,2]
[342957861,1732223436146,-18270.08502277,0.000208,2]
[342957862,1732223436156,-1028.20090408,0.000208,2]
[342957863,1732223436165,-1028.20090405,0.000208,2]
[342957864,1732223436175,-1028.20090405,0.000208,2]
[342957865,1732223436185,-1028.20090405,0.000208,2]
[342957866,1732223436194,-1678.47593511,0.00020816,2]
[342957867,1732223436203,-330.0,0.000209,2]
[342957868,1732223436213,-3000.0,0.000209,2]
[342957869,1732223436223,-3000.0,0.0002091,2]
[342957870,1732223436232,-3000.0,0.0002092,2]
[342957871,1732223436242,-3000.0,0.0002093,2]
[342957872,1732223436252,-3000.0,0.0002094,2]
[342957873,1732223436262,-3000.0,0.0002095,2]
[342957874,1732223436272,-3000.0,0.0002096,2]
[342957875,1732223436281,-3000.0,0.0002097,2]
[342957876,1732223436291,-3000.0,0.0002098,2]
[342957877,1732223436300,-3000.0,0.0002099,2]
[342957878,1732223436310,-258.5,0.00020997,2]
[342957879,1732223436320,-1009.50839205,0.00020999,2]
[342957880,1732223436329,-444.87531355,0.00021,2]
[342957881,1732223436339,-373009.98418508,0.00021,5]
[342957882,1732223436352,-370504.93322767,0.00021,5]
[342957883,1732223436364,-3209.76066872,0.00021,5]
[342957884,1732223436380,-610854.85849669,0.00021,5]
[342957885,1732223436392,-78546.23301199,0.00021,5]
[342957886,1732223436407,-302.71770386,0.00021,5]
[342957916,1732223438409,-714242.26803034,0.00021,5]
[342957918,1732223438421,-23312.7010406,0.00021,5]
[342957920,1732223438433,-7970.2065167,0.00021,5]
[342957980,1732223443469,-160.0,0.0002,2]
[342957981,1732223443480,-616.0,0.000208,2]
[342957982,1732223443491,-7334.1858629,0.00021,5]
[342957983,1732223443506,-53735.92592711,0.00021,5]
[342958039,1732223446408,-300.0,0.00019929,2]
[342958041,1732223446418,-175.30236595,0.00019929,2]
[342958043,1732223446428,-94844.06391486,0.00021,5]
[342958233,1732224632459,-353.94712917,0.000109,2]
[342958235,1732224632469,-400.0,0.00013973,2]
[342958237,1732224632479,-173.217044,0.00018181,2]
[342958238,1732224632488,-300.0,0.00018576,2]
[342958239,1732224632498,-17085.2728505,0.00018577,2]
[342958240,1732224632507,-411.41262657,0.00018751,2]
[342958241,1732224632518,-24900.0,0.00018751,2]
[342958242,1732224632528,-391.304631,0.00018808,2]
[342958243,1732224632538,-173.217044,0.00018865,2]
[342958244,1732224632547,-165.073067,0.00019178,2]
[342958245,1732224632556,-530.0,0.00019536,2]
[342958246,1732224632566,-2382.0,0.00019536,2]
[342958247,1732224632575,-1106.0,0.00019536,2]
[342958248,1732224632584,-173.217044,0.0001955,2]
[342958249,1732224632724,-163.60538139,0.0001973,2]
[342958250,1732224632734,-1000.0,0.0001973,2]
[342958251,1732224632743,-269.35,0.0001982,3]
[342958252,1732224632753,-808.05,0.0001982,3]
[342958253,1732224632762,-188.48249673,0.00019829,2]
[342958254,1732224632772,-216.77478303,0.00019829,2]
[342958255,1732224632781,-245.10520584,0.00019829,2]
[342958256,1732224632790,-320.0,0.00019829,2]
[342958257,1732224632799,-235.79056408,0.00019829,2]
[342958258,1732224632812,-191.84349864,0.00019829,2]
[342958259,1732224632822,-500.0,0.00019829,2]
[342958260,1732224632834,-230000.0,0.0001983,2]
[342958261,1732224632843,-81914.46096993,0.0001983,2]
[342958307,1732224638896,-13851.46776863,0.0001983,2]
[342958409,1732224640295,-1169.9,0.0001983,2]
[342958416,1732224640358,-285.1158179,0.0001983,2]
[342958420,1732224640438,-508.13954355,0.0001983,2]
[342958442,1732224643516,-725.96988784,0.0001983,2]
[342958443,1732224643580,-680.4484889,0.0001983,2]
[342958453,1732224646546,-8502.38614335,0.0001983,2]
[342958454,1732224646610,-612.96047816,0.0001983,2]
[342958455,1732224646628,-378.37065495,0.0001983,2]
[342958456,1732224646671,-5647.89529103,0.0001983,2]
[342958482,1732225733200,-1000.0,0.00027,120]
[342958504,1732225823171,3685.53489236,0.00026,60]
[342958549,1732225832788,-400.0,0.00013973,2]
[342958551,1732225832798,-339.026584,0.00018223,2]
[342958553,1732225832808,-300.0,0.00018524,2]
[342958555,1732225832817,-300.0,0.00018524,2]
[342958557,1732225832827,-2217.973416,0.00018525,2]
[342959168,1732225838876,-758.099983,0.00018525,2]
[342959678,1732225843714,-5958.92246311,0.00018525,2]
[342959887,1732225846758,-12744.087232,0.00018525,2]
[342961361,1732228238074,-197.71,0.00010959,2]
[342961362,1732228238084,-164.76,0.00010959,2]
[342961363,1732228238096,-145.65822745,0.00010959,2]
[342961364,1732228238108,-678.18177255,0.00010959,2]
[342961365,1732228238118,-400.0,0.00013973,2]
[342961366,1732228238128,-300.0,0.00013973,2]
[342961367,1732228238137,-300.0,0.00013973,2]
[342961368,1732228238148,-24900.0,0.00013974,2]
[342961369,1732228238158,-355.9063819,0.00014154,2]
[342961371,1732228238167,-9021.27605,0.00014436,2]
[342961372,1732228238176,-2298.79755702,0.00014521,2]
[342961373,1732228238188,-700.86235295,0.00014521,2]
[342961374,1732228238197,-289.35843,0.00014621,2]
[342961375,1732228238207,-250.0,0.00014641,2]
[342961376,1732228238217,-624.18819359,0.00014641,2]
[342961377,1732228238227,-213.33205762,0.000149,2]
[342961378,1732228238237,-213.33205761,0.000149,2]
[342961379,1732228238247,-9021.27605,0.00015121,2]
[342961380,1732228238257,-420.0,0.00015309,2]
[342961381,1732228238267,-420.0,0.0001537,2]
[342961382,1732228238277,-210.33266948,0.00015531,2]
[342961383,1732228238286,-2999.65990992,0.00015642,2]
[342961384,1732228238296,-152.0,0.00015657,2]
[342961385,1732228238305,-127.81859983,0.00015806,2]
[342961453,1732229212936,5620.43063608,0.00026,60]
[342961988,1732229440056,-156.91558754,0.0001,2]
[342961990,1732229440066,-164.81463488,0.00013973,2]
[342962343,1732229443227,-235.18536512,0.00013973,2]
[342962345,1732229443237,-289.35843,0.00014882,2]
[342962347,1732229443247,-24900.0,0.00015155,2]
[342962349,1732229443257,-300.0,0.00015533,2]
[342962351,1732229443266,-300.0,0.00015533,2]
[342962353,1732229443276,-10503.19082818,0.00015534,2]
[342962355,1732229443287,-2249.74493244,0.00015766,2]
[342962357,1732229443297,-2964.485816,0.00015777,2]
[342962359,1732229443307,-416.12546239,0.00015778,2]
[342962361,1732229443317,-2964.485816,0.00016462,2]
[342962363,1732229443326,-2249.74493244,0.00016748,2]
[342962365,1732229443335,-151.0,0.00016748,2]
[342962367,1732229443344,-151.0,0.00016748,2]
[342962369,1732229443354,-653.845277,0.00016748,2]
[342962371,1732229443364,-653.845277,0.00016748,2]
[342962373,1732229443373,-151.0,0.00016748,2]
[342962375,1732229443383,-420.0,0.00016991,2]
[342962377,1732229443392,-420.0,0.00017086,2]
[342962379,1732229443402,-1468.994191,0.00017147,2]
[342962381,1732229443411,-3164.968614,0.00017147,2]
[342962383,1732229443421,-151.0,0.00017147,2]
[342962385,1732229443430,-151.0,0.00017147,2]
[342962387,1732229443440,-151.0,0.00017147,2]
[342962389,1732229443450,-3164.968614,0.00017147,2]
[342962391,1732229443460,-151.0,0.00017147,2]
[342962393,1732229443469,-151.0,0.00017147,2]
[342962395,1732229443479,-151.0,0.00017147,2]
[342962397,1732229443490,-151.009176,0.00017147,2]
[342962399,1732229443499,-204.513145,0.00017147,2]
[342962401,1732229443509,-204.513145,0.00017147,2]
[342962403,1732229443518,-167.259002,0.00017147,2]
[342962405,1732229443529,-167.259002,0.00017147,2]
[342962407,1732229443539,-167.259002,0.00017147,2]
[342962409,1732229443549,-167.259002,0.00017147,2]
[342962411,1732229443558,-167.259002,0.00017147,2]
[342962413,1732229443567,-167.259002,0.00017147,2]
[342962415,1732229443577,-224.254104,0.00017147,2]
[342962417,1732229443587,-224.254104,0.00017147,2]
[342962419,1732229443597,-1671.660713,0.00017147,2]
[342962421,1732229443607,-1671.660713,0.00017147,2]
[342962423,1732229443617,-151.0,0.00017147,2]
[342962425,1732229443627,-412.875594,0.00017147,2]
[342962427,1732229443637,-151.0,0.00017147,2]
[342962429,1732229443647,-412.875594,0.00017147,2]
[342962431,1732229443656,-412.875594,0.00017147,2]
[342962433,1732229443666,-1100.276821,0.00017147,2]
[342962435,1732229443676,-1671.660713,0.00017147,2]
[342962437,1732229443685,-1671.660713,0.00017147,2]
[342962439,1732229443695,-412.875594,0.00017147,2]
[342962441,1732229443704,-151.0,0.00017147,2]
[342962443,1732229443713,-412.875594,0.00017147,2]
[342962445,1732229443723,-151.0,0.00017147,2]
[342962447,1732229443733,-412.875594,0.00017147,2]
[342962449,1732229443743,-1100.276821,0.00017147,2]
[342962451,1732229443752,-481.32239,0.00017147,2]
[342962453,1732229443762,-517.315989,0.00017147,2]
[342962455,1732229443771,-517.315989,0.00017147,2]
[342962457,1732229443781,-517.315989,0.00017147,2]
[342962459,1732229443790,-481.32239,0.00017147,2]
[342962461,1732229443799,-517.315989,0.00017147,2]
[342962463,1732229443809,-517.315989,0.00017147,2]
[342962465,1732229443819,-517.315989,0.00017147,2]
[342962467,1732229443829,-1144.613509,0.00017147,2]
[342962469,1732229443838,-1144.613509,0.00017147,2]
[342962471,1732229443847,-1144.613509,0.00017147,2]
[342962473,1732229443856,-1144.613509,0.00017147,2]
[342962475,1732229443867,-1144.613509,0.00017147,2]
[342962477,1732229443876,-1144.613509,0.00017147,2]
[342962479,1732229443885,-437.785393,0.00017147,2]
[342962481,1732229443895,-437.785393,0.00017147,2]
[342962483,1732229443905,-151.0,0.00017147,2]
[342962485,1732229443915,-437.785393,0.00017147,2]
[342962487,1732229443924,-151.0,0.00017147,2]
[342962489,1732229443933,-437.785393,0.00017147,2]
[342962491,1732229443943,-151.0,0.00017147,2]
[342962493,1732229443953,-151.0,0.00017147,2]
[342962496,1732229443962,-151.0,0.00017147,2]
[342962498,1732229443972,-151.0,0.00017147,2]
[342962499,1732229443981,-151.0,0.00017147,2]
[342962502,1732229443991,-151.0,0.00017147,2]
[342962504,1732229444002,-151.0,0.00017147,2]
[342962506,1732229444012,-151.0,0.00017147,2]
[342962508,1732229444021,-151.0,0.00017147,2]
[342962510,1732229444030,-151.0,0.00017147,2]
[342962512,1732229444040,-151.0,0.00017147,2]
[342962514,1732229444049,-166.63281,0.00017147,2]
[342962516,1732229444058,-156.456416,0.00017147,2]
[342962518,1732229444067,-653.845277,0.00017147,2]
[342962520,1732229444077,-653.845277,0.00017147,2]
[342962522,1732229444086,-653.845277,0.00017147,2]
[342962524,1732229444095,-653.845277,0.00017147,2]
[342962526,1732229444105,-653.845277,0.00017147,2]
[342962528,1732229444115,-653.845277,0.00017147,2]
[342962530,1732229444124,-156.456416,0.00017147,2]
[342962532,1732229444134,-653.845277,0.00017147,2]
[342962534,1732229444147,-653.845277,0.00017147,2]
[342962536,1732229444157,-653.845277,0.00017147,2]
[342962538,1732229444167,-653.845277,0.00017147,2]
[342962540,1732229444176,-653.845277,0.00017147,2]
[342962542,1732229444187,-653.845277,0.00017147,2]
[342962544,1732229444196,-151.0,0.00017147,2]
[342962546,1732229444205,-151.0,0.00017147,2]
[342962548,1732229444216,-151.0,0.00017147,2]
[342962550,1732229444226,-151.0,0.00017147,2]
[342962552,1732229444236,-151.0,0.00017147,2]
[342962554,1732229444246,-151.0,0.00017147,2]
[342962556,1732229444257,-2964.485816,0.00017147,2]
[342962558,1732229444266,-386.47770469,0.00017445,2]
[342962560,1732229444276,-500.0,0.00017445,2]
[342962562,1732229444287,-500.0,0.00017445,2]
[342962564,1732229444297,-500.0,0.00017445,2]
[342962566,1732229444307,-500.0,0.00017445,2]
[342962568,1732229444319,-500.0,0.00017445,2]
[342962570,1732229444328,-582.66183189,0.00017445,2]
[342962572,1732229444338,-500.0,0.00017445,2]
[342962574,1732229444348,-500.0,0.00017445,2]
[342962576,1732229444357,-500.0,0.00017445,2]
[342962578,1732229444367,-448.26437769,0.00017445,2]
[342962580,1732229444377,-500.0,0.00017445,2]
[342962582,1732229444386,-500.0,0.00017445,2]
[342962584,1732229444396,-518.87873556,0.00017445,2]
[342962586,1732229444407,-500.0,0.00017445,2]
[342962588,1732229444418,-500.0,0.00017445,2]
[342962590,1732229444428,-500.0,0.00017445,2]
[342962592,1732229444438,-500.0,0.00017445,2]
[342962594,1732229444449,-500.0,0.00017445,2]
[342962596,1732229444459,-500.0,0.00017445,2]
[342962598,1732229444469,-500.0,0.00017445,2]
[342962600,1732229444479,-191.73073548,0.00017445,2]
[342962602,1732229444490,-500.0,0.00017445,2]
[342962604,1732229444500,-500.0,0.00017445,2]
[342962606,1732229444510,-500.0,0.00017445,2]
[342962608,1732229444520,-500.0,0.00017445,2]
[342962610,1732229444531,-229.21804438,0.00017445,2]
[342962612,1732229444542,-500.0,0.00017445,2]
[342962614,1732229444552,-500.0,0.00017445,2]
[342962616,1732229444561,-500.0,0.00017445,2]
[342962618,1732229444571,-500.0,0.00017445,2]
[342962620,1732229444580,-500.0,0.00017445,2]
[342962622,1732229444589,-500.0,0.00017445,2]
[342962624,1732229444599,-500.0,0.00017445,2]
[342962626,1732229444608,-500.0,0.00017445,2]
[342962628,1732229444618,-500.0,0.00017445,2]
[342962630,1732229444628,-500.0,0.00017445,2]
[342962632,1732229444637,-500.0,0.00017445,2]
[342962634,1732229444647,-500.0,0.00017445,2]
[342962636,1732229444657,-500.0,0.00017445,2]
[342962638,1732229444668,-500.0,0.00017445,2]
[342962640,1732229444678,-500.0,0.00017445,2]
[342962642,1732229444687,-500.0,0.00017445,2]
[342962644,1732229444698,-500.0,0.00017445,2]
[342962646,1732229444707,-500.0,0.00017445,2]
[342962648,1732229444717,-500.0,0.00017445,2]
[342962650,1732229444727,-500.0,0.00017445,2]
[342962652,1732229444736,-500.0,0.00017445,2]
[342962654,1732229444746,-500.0,0.00017445,2]
[342962656,1732229444756,-500.0,0.00017445,2]
[342962658,1732229444766,-500.0,0.00017445,2]
[342962660,1732229444775,-500.0,0.00017445,2]
[342962662,1732229444785,-500.0,0.00017445,2]
[342962664,1732229444794,-500.0,0.00017445,2]
[342962666,1732229444804,-500.0,0.00017445,2]
[342962668,1732229444813,-500.0,0.00017445,2]
[342962670,1732229444822,-500.0,0.00017445,2]
[342962672,1732229444832,-500.0,0.00017445,2]
[342962674,1732229444842,-500.0,0.00017445,2]
[342962676,1732229444851,-500.0,0.00017445,2]
[342962678,1732229444861,-500.0,0.00017445,2]
[342962680,1732229444871,-500.0,0.00017445,2]
[342962682,1732229444881,-500.0,0.00017445,2]
[342962684,1732229444891,-500.0,0.00017445,2]
[342962687,1732229444901,-465.7478595,0.00017445,2]
[342962689,1732229444910,-500.0,0.00017445,2]
[342962690,1732229444920,-20000.0,0.00017446,2]
[342962692,1732229444930,-151.0,0.00017446,2]
[342962694,1732229444940,-151.0,0.00017446,2]
[342962696,1732229444949,-151.0,0.00017446,2]
[342962699,1732229444960,-151.0,0.00017446,2]
[342962700,1732229444970,-1125.802151,0.00017446,2]
[342962702,1732229444979,-1125.802151,0.00017446,2]
[342962704,1732229444989,-1466.553332,0.00017446,2]
[342962707,1732229444999,-1466.553332,0.00017446,2]
[342962708,1732229445008,-151.0,0.00017446,2]
[342962711,1732229445019,-710.617934,0.00017446,2]
[342962713,1732229445028,-710.617934,0.00017446,2]
[342962715,1732229445038,-710.617934,0.00017446,2]
[342962717,1732229445048,-710.617934,0.00017446,2]
[342962719,1732229445058,-151.0,0.00017446,2]
[342962721,1732229445068,-151.0,0.00017446,2]
[342962722,1732229445078,-1468.994191,0.00017446,2]
[342962725,1732229445088,-1468.994191,0.00017446,2]
[342962727,1732229445098,-1468.994191,0.00017446,2]
[342962728,1732229445108,-3164.968614,0.00017446,2]
[342962730,1732229445118,-151.0,0.00017446,2]
[342962732,1732229445128,-3164.968614,0.00017446,2]
[342962735,1732229445138,-151.0,0.00017446,2]
[342962736,1732229445152,-151.0,0.00017446,2]
[342962738,1732229445161,-3164.968614,0.00017446,2]
[342962740,1732229445172,-151.0,0.00017446,2]
[342962742,1732229445183,-151.0,0.00017446,2]
[342962744,1732229445192,-151.0,0.00017446,2]
[342962746,1732229445202,-151.0,0.00017446,2]
[342962748,1732229445212,-151.0,0.00017446,2]
[342962750,1732229445223,-151.0,0.00017446,2]
[342962752,1732229445232,-151.0,0.00017446,2]
[342962754,1732229445243,-3164.968614,0.00017446,2]
[342962756,1732229445252,-151.0,0.00017446,2]
[342962758,1732229445263,-3164.968614,0.00017446,2]
[342962759,1732229445272,-3164.968614,0.00017446,2]
[342962761,1732229445404,-151.0,0.00017446,2]
[342962763,1732229445414,-151.0,0.00017446,2]
[342962765,1732229445425,-151.0,0.00017446,2]
[342962767,1732229445435,-151.0,0.00017446,2]
[342962769,1732229445445,-151.0,0.00017446,2]
[342962771,1732229445455,-151.0,0.00017446,2]
[342962773,1732229445465,-151.0,0.00017446,2]
[342962775,1732229445475,-151.0,0.00017446,2]
[342962777,1732229445484,-151.0,0.00017446,2]
[342962779,1732229445494,-151.0,0.00017446,2]
[342962781,1732229445503,-151.0,0.00017446,2]
[342962783,1732229445513,-151.0,0.00017446,2]
[342962785,1732229445522,-204.206409,0.00017446,2]
[342962787,1732229445532,-204.513145,0.00017446,2]
[342962789,1732229445541,-204.513145,0.00017446,2]
[342962791,1732229445551,-204.513145,0.00017446,2]
[342962793,1732229445561,-204.513145,0.00017446,2]
[342962795,1732229445570,-204.513145,0.00017446,2]
[342962797,1732229445580,-204.513145,0.00017446,2]
[342962799,1732229445590,-204.513145,0.00017446,2]
[342962801,1732229445599,-204.513145,0.00017446,2]
[342962804,1732229445609,-204.513145,0.00017446,2]
[342962806,1732229445618,-204.513145,0.00017446,2]
[342962807,1732229445628,-167.259002,0.00017446,2]
[342962809,1732229445637,-167.259002,0.00017446,2]
[342962811,1732229445646,-167.259002,0.00017446,2]
[342962814,1732229445656,-167.259002,0.00017446,2]
[342962816,1732229445667,-167.259002,0.00017446,2]
[342962818,1732229445677,-167.259002,0.00017446,2]
[342962820,1732229445687,-167.259002,0.00017446,2]
[342962822,1732229445696,-167.259002,0.00017446,2]
[342962824,1732229445706,-167.259002,0.00017446,2]
[342962826,1732229445716,-167.259002,0.00017446,2]
[342962828,1732229445726,-167.259002,0.00017446,2]
[342962830,1732229445736,-167.259002,0.00017446,2]
[342962832,1732229445745,-167.259002,0.00017446,2]
[342962834,1732229445755,-167.258993,0.00017446,2]
[342962836,1732229445765,-224.254104,0.00017446,2]
[342962838,1732229445774,-224.254104,0.00017446,2]
[342962840,1732229445785,-224.254104,0.00017446,2]
[342962842,1732229445794,-224.254104,0.00017446,2]
[342962844,1732229445804,-224.254104,0.00017446,2]
[342962847,1732229445813,-224.254104,0.00017446,2]
[342962850,1732229445823,-224.254104,0.00017446,2]
[342962852,1732229445833,-224.254104,0.00017446,2]
[342962854,1732229445842,-224.254104,0.00017446,2]
[342962856,1732229445851,-224.254104,0.00017446,2]
[342962858,1732229445861,-1671.660713,0.00017446,2]
[342962860,1732229445871,-1671.660713,0.00017446,2]
[342962862,1732229445880,-1671.660713,0.00017446,2]
[342962864,1732229445890,-1671.660713,0.00017446,2]
[342962866,1732229445900,-1671.660713,0.00017446,2]
[342962868,1732229445909,-1671.660713,0.00017446,2]
[342962870,1732229445920,-151.0,0.00017446,2]
[342962872,1732229445930,-1671.660713,0.00017446,2]
[342962874,1732229445940,-151.0,0.00017446,2]
[342962876,1732229445950,-151.0,0.00017446,2]
[342962878,1732229445959,-1671.660713,0.00017446,2]
[342962880,1732229445968,-412.875594,0.00017446,2]
[342962882,1732229445978,-151.0,0.00017446,2]
[342962884,1732229445988,-412.875594,0.00017446,2]
[342962886,1732229445998,-1100.276821,0.00017446,2]
[342962888,1732229446008,-151.0,0.00017446,2]
[342962890,1732229446018,-412.875594,0.00017446,2]
[342962892,1732229446028,-412.875594,0.00017446,2]
[342962894,1732229446037,-1671.660713,0.00017446,2]
[342962896,1732229446047,-412.875594,0.00017446,2]
[342962898,1732229446056,-1671.660713,0.00017446,2]
[342962900,1732229446066,-1100.276821,0.00017446,2]
[342962902,1732229446075,-151.0,0.00017446,2]
[342962904,1732229446085,-412.875594,0.00017446,2]
[342962906,1732229446094,-1671.660713,0.00017446,2]
[342962908,1732229446104,-1100.276821,0.00017446,2]
[342962911,1732229446114,-151.0,0.00017446,2]
[342962913,1732229446124,-1671.660713,0.00017446,2]
[342962915,1732229446134,-412.875594,0.00017446,2]
[342962917,1732229446146,-1100.276821,0.00017446,2]
[342962919,1732229446155,-151.0,0.00017446,2]
[342962921,1732229446165,-1671.660713,0.00017446,2]
[342962922,1732229446178,-1100.276821,0.00017446,2]
[342962925,1732229446189,-1671.660713,0.00017446,2]
[342962927,1732229446198,-1671.660713,0.00017446,2]
[342962929,1732229446208,-151.0,0.00017446,2]
[342962931,1732229446218,-1671.660718,0.00017446,2]
[342962933,1732229446228,-412.875594,0.00017446,2]
[342962935,1732229446238,-151.0,0.00017446,2]
[342962937,1732229446247,-412.875594,0.00017446,2]
[342962939,1732229446257,-151.0,0.00017446,2]
[342962941,1732229446266,-412.875594,0.00017446,2]
[342962943,1732229446277,-151.0,0.00017446,2]
[342962945,1732229446287,-412.875594,0.00017446,2]
[342962947,1732229446296,-1100.276821,0.00017446,2]
[342962949,1732229446306,-151.0,0.00017446,2]
[342962951,1732229446315,-412.875594,0.00017446,2]
[342962953,1732229446326,-151.0,0.00017446,2]
[342962955,1732229446336,-1100.276821,0.00017446,2]
[342962957,1732229446346,-412.875594,0.00017446,2]
[342962959,1732229446355,-295.600839,0.00017446,2]
[342962961,1732229446364,-1100.276821,0.00017446,2]
[342962963,1732229446374,-412.875592,0.00017446,2]
[342962965,1732229446383,-1100.276821,0.00017446,2]
[342962967,1732229446393,-1100.276821,0.00017446,2]
[342962969,1732229446402,-481.32239,0.00017446,2]
[342962971,1732229446411,-481.32239,0.00017446,2]
[342962973,1732229446422,-481.32239,0.00017446,2]
[342962975,1732229446431,-517.315989,0.00017446,2]
[342962977,1732229446441,-517.315989,0.00017446,2]
[342962979,1732229446450,-517.315989,0.00017446,2]
[342962981,1732229446460,-517.315989,0.00017446,2]
[342962983,1732229446470,-517.315989,0.00017446,2]
[342962985,1732229446480,-517.315989,0.00017446,2]
[342962987,1732229446490,-517.315989,0.00017446,2]
[342962989,1732229446499,-481.32239,0.00017446,2]
[342962991,1732229446509,-481.32239,0.00017446,2]
[342962993,1732229446518,-481.32239,0.00017446,2]
[342962995,1732229446528,-517.315989,0.00017446,2]
[342962997,1732229446537,-517.315989,0.00017446,2]
[342962999,1732229446547,-517.315989,0.00017446,2]
[342963001,1732229446557,-517.315989,0.00017446,2]
[342963003,1732229446567,-517.315989,0.00017446,2]
[342963005,1732229446577,-517.315989,0.00017446,2]
[342963007,1732229446587,-517.315985,0.00017446,2]
[342963009,1732229446597,-1144.613509,0.00017446,2]
[342963011,1732229446607,-1144.613509,0.00017446,2]
[342963013,1732229446616,-1144.613509,0.00017446,2]
[342963015,1732229446626,-1144.613509,0.00017446,2]
[342963017,1732229446635,-1144.613509,0.00017446,2]
[342963019,1732229446645,-1144.613509,0.00017446,2]
[342963022,1732229446655,-1144.613509,0.00017446,2]
[342963023,1732229446664,-1144.613509,0.00017446,2]
[342963026,1732229446675,-1144.613509,0.00017446,2]
[342963028,1732229446685,-1144.613509,0.00017446,2]
[342963030,1732229446694,-1144.613509,0.00017446,2]
[342963031,1732229446704,-437.785393,0.00017446,2]
[342963033,1732229446713,-1144.613509,0.00017446,2]
[342963035,1732229446723,-437.785393,0.00017446,2]
[342963037,1732229446732,-1144.613509,0.00017446,2]
[342963040,1732229446742,-437.785393,0.00017446,2]
[342963041,1732229446751,-1144.613511,0.00017446,2]
[342963044,1732229446761,-437.785393,0.00017446,2]
[342963045,1732229446771,-437.785393,0.00017446,2]
[342963047,1732229446781,-437.785393,0.00017446,2]
[342963049,1732229446790,-437.785393,0.00017446,2]
[342963052,1732229446800,-437.785393,0.00017446,2]
[342963054,1732229446811,-437.785393,0.00017446,2]
[342963056,1732229446821,-437.785393,0.00017446,2]
[342963058,1732229446830,-437.785393,0.00017446,2]
[342963060,1732229446840,-437.785393,0.00017446,2]
[342963062,1732229446850,-437.785393,0.00017446,2]
[342963064,1732229446859,-437.785393,0.00017446,2]
[342963066,1732229446869,-437.785393,0.00017446,2]
[342963068,1732229446878,-437.785397,0.00017446,2]
[342963070,1732229446887,-151.0,0.00017446,2]
[342963072,1732229446897,-151.0,0.00017446,2]
[342963073,1732229446906,-151.0,0.00017446,2]